[Event "26th Womens ECCC 2022"]
[Site "Mayrhofen"]
[Date "2022.10.09"]
[Round "7.5"]
[White "Muzychuk, Anna"]
[Black "Buksa, Nataliya"]
[Result "0-1"]
[ECO "B30"]
[WhiteElo "2534"]
[BlackElo "2413"]
[Annotator "TA"]
[PlyCount "76"]
[EventDate "2022.10.03"]
[EventType "team-tourn"]
[EventCountry "AUT"]
[SourceTitle "playchess.com"]
[Source "ChessBase"]
[SourceQuality "1"]
[TimeControl "40/5400+30:1800+30"]

{[%evp 13,76,22,26,19,29,20,35,23,29,16,28,25,50,35,43,49,92,39,61,59,75,62,60,51,78,58,88,74,93,48,87,89,97,70,77,47,104,-13,-7,-12,-6,-8,-42,-53,-83,-170,-141,-362,-360,-539,-522,-739,-709,-29984,-29985,-29984,-29981,-29985,-29986,-29992,-29993,-29993,-29994,-29994,-29995]} 1. e4 {[%emt 0:00:08]} c5 {[%emt 0:00:03]} 2. Nf3 {[%emt 0:00:08]} Nc6 {[%emt 0:00:04]} 3. Nc3 {[%emt 0:00:06]} e5 {[%emt 0:00:16]} 4. Bc4 {[%emt 0:00:05]} Be7 {[%emt 0:00:04]} 5. d3 {[%emt 0:00:11]} d6 {[%emt 0:00:04]} 6. Nd2 {[%emt 0:00:15]} Bg5 {[%emt 0:00:32]} 7. h4 {[%emt 0:01:29]} Bh6 {[%emt 0:01:29]} 8. Qh5 {[%emt 0:00:49][%csl Gc4][%cal Rh5f7] B30: Sicilian: 2...Nc6 3 Bb5, lines without ...g6.} g6 {[%emt 0:03:01]} 9. Qd1 {[%emt 0:00:08]} Nf6 {[%emt 0:08:03] Against h5} 10. Nf1 {[%emt 0:10:06] White is slightly better.} Bxc1 {[%emt 0:00:46]} 11. Qxc1 {[%emt 0:00:04]} h6 {[%emt 0:00:08]} 12. Ne3 {[%emt 0:03:40] [#]} Nd4 $146 {[%emt 0:03:15]} ({Predecessor:} 12... Be6 13. Qd2 Qd7 14. Ned5 Bxd5 15. exd5 Nd4 16. Ne4 Nxe4 17. dxe4 Qg4 18. f3 Qg3+ {1-0 (37) Pachow,J (2383)-Dimitrijeski,B (2197) Germany 2004}) 13. Ncd5 {[%emt 0:06:12]} Nxd5 {[%emt 0:10:54]} 14. Bxd5 {[%emt 0:00:31]} Ne6 {[%emt 0:00:48]} 15. Bb3 {[%emt 0:11:26]} ({White should play} 15. Qd2 $16) 15... Nc7 {[%emt 0:03:11]} 16. Qd2 {[%emt 0:14:44]} Qe7 {[%emt 0:02:13]} 17. g3 {[%emt 0:03:47]} Be6 {[%emt 0:00:13]} 18. Bxe6 {[%emt 0:02:46]} Qxe6 {[%emt 0:00:18]} 19. h5 {[%emt 0:04:14]} b6 {[%emt 0:10:23]} 20. c4 {[%emt 0:04:45]} Qd7 {[%emt 0:07:40]} 21. b4 {[%emt 0:04:11]} Qd8 {[%emt 0:09:15]} 22. bxc5 {[%emt 0:07:23]} dxc5 {[%emt 0:00:12]} 23. hxg6 {[%emt 0:05:06]} fxg6 {[%emt 0:00:11][%cal Bf7g6,Bg6g5,Bg5f4,Bf4g3][%mdl 32]} 24. Ng4 {[%emt 0:00:18][%csl LRe5,LRh6]} h5 {[%emt 0:16:27]} ({Better is} 24... Qd6 $14) 25. Rd1 {[%emt 0:00:49]} (25. Qb2 $16) 25... Ne6 $1 $11 {[%emt 0:04:34]} 26. Nxe5 {[%emt 0:01:21]} Qf6 {[%emt 0:00:03]} 27. f4 {[%emt 0:01:24]} g5 {[%emt 0:01:06][%cal Rg5f4]} 28. Qc2 {[%emt 0:05:30] Black must now prevent Qa4+.} O-O-O {[%emt 0:04:27][%cal Be8c8,Bc8c7,Bc7d8][%mdl 32]} 29. Qa4 {[%emt 0:01:37] [#]} (29. Nc6 $17 gxf4 30. e5 (30. Nxd8 Rxd8 31. e5 Qf5 $17)) 29... Rh7 $1 $19 {[%emt 0:00:28]} 30. Nc6 $2 {[%emt 0:09:11] Loses the game.} (30. Qa6+ $17 Rb7 31. Nc6 (31. Rxh5 $2 gxf4 32. Rf5 Qh8 $19) 31... gxf4 32. Nxd8 Nxd8 33. gxf4 (33. Rxh5 $2 Qd4 $19)) 30... Qc3+ {[%emt 0:08:12]} 31. Ke2 {[%emt 0:00:01]} (31. Rd2 $142 Rxd3 32. Qc2 Qxc2 33. Rxc2 Rxg3 34. f5) 31... gxf4 {[%emt 0:00:08]} 32. Qa6+ {[%emt 0:03:13] [#]} Kc7 $1 {[%emt 0:01:02] aiming for ...Qc2+.} 33. Nxd8 {[%emt 0:00:37]} Nd4+ {[%emt 0:01:47] Black mates.} 34. Kf1 {[%emt 0:00:06]} Kxd8 {[%emt 0:00:03]} 35. Rh2 {[%emt 0:00:45]} fxg3 {[%emt 0:00:58]} 36. Rg2 {[%emt 0:00:01]} Rf7+ {[%emt 0:00:13]} 37. Kg1 {[%emt 0:00:00]} Nf3+ {[%emt 0:00:08]} 38. Kh1 {[%emt 0:00:05]} Qf6 {[%emt 0:00:03] Weighted Error Value: White=0.70/Black=0.07 (flawless)} 0-1

[Event "26th Womens ECCC 2022"]
[Site "Mayrhofen"]
[Date "2022.10.09"]
[Round "7.6"]
[White "Gaponenko, Inna"]
[Black "Stefanova, Antoaneta"]
[Result "0-1"]
[ECO "B13"]
[WhiteElo "2348"]
[BlackElo "2440"]
[Annotator "TA"]
[PlyCount "104"]
[EventDate "2022.10.03"]
[EventType "team-tourn"]
[EventCountry "AUT"]
[SourceTitle "playchess.com"]
[Source "ChessBase"]
[SourceQuality "1"]
[TimeControl "40/5400+30:1800+30"]

{[%evp 11,104,25,20,10,6,0,14,0,0,2,8,11,6,5,21,13,36,15,19,13,13,8,14,25,17,0,0,12,18,10,16,6,8,-16,-22,-46,-48,-50,-48,-106,-102,-93,-39,-25,0,-21,9,0,-7,-18,-18,-18,-17,-18,-18,-18,-17,-16,0,-29,-29,-38,-29,-87,-66,-208,-21,-62,-35,-54,-41,-143,-145,-400,-396,-399,-400,-393,-348,-390,-387,-364,-386,-400,-400,-400,-396,-397,-354,-344,-337,-775,-716,-29991,-1002]} 1. e4 {[%emt 0:00:03]} c6 {[%emt 0:00:05]} 2. d4 {[%emt 0:00:15]} d5 {[%emt 0:00:05]} 3. exd5 {[%emt 0:00:43]} cxd5 {[%emt 0:00:05]} 4. Bd3 {[%emt 0:00:13]} Nc6 {[%emt 0:04:47]} 5. c3 {[%emt 0:00:06]} Qc7 {[%emt 0:05:42]} 6. h3 {[%emt 0:00:13]} g6 {[%emt 0:04:55]} 7. Nf3 {[%emt 0:04:58] B13: Caro-Kann: Exchange Variation and Panov-Botvinnik Attack.} Bf5 {[%emt 0:02:40]} 8. Be2 {[%emt 0:00:07] The modern move.} Rd8 {[%emt 0:04:58]} 9. O-O {[%emt 0:03:25] The position is equal.} Bg7 {[%emt 0:02:09]} 10. Be3 {[%emt 0:02:52]} Nf6 {[%emt 0:02:20]} 11. Nbd2 {[%emt 0:03:33]} O-O {[%emt 0:01:51]} 12. Re1 {[%emt 0:03:10]} h6 {[%emt 0:02:36] [#]} (12... Ne4 {keeps more tension.} 13. Bb5 a6 14. Ba4 Na5) 13. Nh4 $146 {[%emt 0:41:20]} ({Predecessor:} 13. Rc1 g5 14. b4 a6 15. a4 e6 16. b5 axb5 17. axb5 Ne7 18. Ne5 Ne4 19. Nxe4 dxe4 {0-1 (38) Blomqvist,E (2542)-Piorun,K (2634) Terme Catez 2021}) 13... Bc8 {[%emt 0:06:07]} 14. Bd3 {[%emt 0:00:12]} e5 {[%emt 0:14:38]} 15. dxe5 {[%emt 0:00:39]} Nxe5 {[%emt 0:00:14]} 16. Bf4 {[%emt 0:04:28]} Rfe8 {[%emt 0:19:44][%cal Of6e4]} 17. Nhf3 {[%emt 0:13:04]} Nfd7 {[%emt 0:02:15]} 18. Bb5 {[%emt 0:09:24] White wants to play Nxe5.} Nxf3+ {[%emt 0:07:31]} 19. Qxf3 {[%emt 0:00:05]} Qc5 {[%emt 0:00:23]} 20. Bxd7 {[%emt 0:09:16]} Bxd7 {[%emt 0:00:36][%cal Bc8d7,Bd7c6,Bc6b5][%mdl 32]} 21. Nb3 {[%emt 0:00:04]} Qb5 {[%emt 0:02:14]} 22. Bc7 {[%emt 0:02:34]} Rc8 {[%emt 0:01:28]} 23. Rxe8+ {[%emt 0:00:04]} Rxe8 {[%emt 0:02:58]} 24. Rd1 {[%emt 0:00:08]} Bc6 {[%emt 0:01:31][%cal Od5d4]} 25. Qd3 {[%emt 0:00:19] [#] Against d4} (25. Qf4 $1 $15) 25... Re1+ $3 {[%emt 0:03:18][%mdl 512]} 26. Kh2 {[%emt 0:00:03]} Rxd1 {[%emt 0:00:05]} ({Black should try} 26... Qxd3 $17 27. Rxd3 Re2) 27. Qxd1 $15 {[%emt 0:00:03]} Qa4 {[%emt 0:00:06]} (27... d4 $5) 28. Qb1 {[%emt 0:00:59]} Bb5 {[%emt 0:00:33]} 29. Bb8 {[%emt 0:00:58]} Bc4 {[%emt 0:02:48]} 30. Qe1 {[%emt 0:00:40]} d4 {[%emt 0:05:17]} (30... Qxa2 $2 31. Qe8+ Kh7 32. Qxf7 $18) 31. Nxd4 {[%emt 0:00:57] Threatens to win with b3.} Qxa2 {[%emt 0:00:05]} 32. Qd2 {[%emt 0:00:42]} a5 {[%emt 0:00:32][%cal Ba7a5,Ba5a4][%mdl 32]} 33. Nf3 {[%emt 0:00:19]} Bd5 {[%emt 0:01:17]} 34. Ne5 {[%emt 0:00:27]} a4 {[%emt 0:00:50]} 35. Qd4 {[%emt 0:00:29]} Be6 {[%emt 0:00:27]} 36. Qb4 {[%emt 0:00:31]} Qd5 {[%emt 0:00:34]} 37. Ng4 {[%emt 0:00:46]} (37. Nf3 $11 {remains equal.}) 37... b5 {[%emt 0:00:30]} 38. Ne3 {[%emt 0:00:44] [#]} ({Better is} 38. Qd6 $15) 38... Qc6 $2 {[%emt 0:00:29]} (38... Qd3 $1 $19 {[%cal Rd3e2] White must now prevent ...Qe2.} 39. Bg3 Qe2) 39. Qd6 {[%emt 0:00:25]} Qb7 {[%emt 0:00:30][%cal Ob5b4]} 40. Qd8+ {[%emt 0:00:17]} Kh7 {[%emt 0:00:05]} 41. Bd6 {[%emt 0:30:08]} ({White must play} 41. Nc2 $1 $15) 41... Qe4 $17 {[%emt 0:04:58] aiming for ...Qb1.} 42. Qa5 $2 {[%emt 0:00:00][%mdl 8192]} (42. Qb8 $17) 42... Qd3 $19 {[%emt 0:03:20]} 43. Qb4 {[%emt 0:00:00]} Qe2 {[%emt 0:02:11]} 44. Kg3 {[%emt 0:00:00]} h5 {[%emt 0:03:05]} 45. h4 {[%emt 0:00:00]} Bb3 {[%emt 0:02:27]} 46. Qa3 {[%emt 0:00:00]} Kg8 {[%emt 0:10:14]} 47. Bf4 {[%emt 0:00:00]} Bf8 {[%emt 0:03:42]} 48. Qa1 {[%emt 0:00:00]} b4 {[%emt 0:00:39]} 49. cxb4 {[%emt 0:00:00]} Bxb4 {[%emt 0:02:10] Hoping for ...Be1.} 50. Qc1 {[%emt 0:00:00]} Be1 {[%emt 0:00:31] A strong pair of Bishops.} 51. Qc8+ $2 {[%emt 0:00:00]} (51. Kh2 Qxf2 52. Qc7) 51... Kh7 {[%emt 0:00:02]} 52. Be5 {[%emt 0:00:00]} Qxe3+ $1 {[%emt 0:00:09] Weighted Error Value: White=0.45/Black=0.13 (very precise)} 0-1

[Event "26th Womens ECCC 2022"]
[Site "Mayrhofen"]
[Date "2022.10.09"]
[Round "7.7"]
[White "Cramling, Pia"]
[Black "Doluhanova, Evgeniya"]
[Result "1/2-1/2"]
[ECO "E17"]
[WhiteElo "2459"]
[BlackElo "2264"]
[Annotator "TA"]
[PlyCount "199"]
[EventDate "2022.10.03"]
[EventType "team-tourn"]
[EventCountry "AUT"]
[SourceTitle "playchess.com"]
[Source "ChessBase"]
[SourceQuality "1"]
[TimeControl "40/5400+30:1800+30"]

{[%evp 12,199,17,15,17,19,20,20,18,17,33,22,49,47,72,58,50,82,70,38,54,63,104,105,145,147,169,163,180,134,204,198,245,239,235,208,241,206,272,193,357,365,360,360,383,385,374,314,302,314,401,408,401,383,352,322,311,289,305,272,256,218,220,108,105,91,110,115,118,111,120,116,120,122,155,149,149,141,149,140,228,228,226,226,222,170,199,211,214,207,207,208,232,232,221,230,289,283,266,268,257,249,252,176,251,263,325,324,315,316,415,413,4914,2415,4906,1787,29951,7494,29962,29963,29973,29974,29976,29977,29977,29977,29977,29978,29978,29979,29979,29969,29969,189,29978,29971,29971,29972,29971,29972,29972,29973,29966,189,189,189,11251,2909,1764,1493,1081,189,29961,0,1111,189,702,687,29974,29975,29981,29982,29981,0,0,0,0,0,0,0,0,0,0,0,0,0,0,0,0,0,0,0,0,0,0,0,0,0,0,0]} 1. d4 {[%emt 0:00:31]} Nf6 {[%emt 0:00:06]} 2. c4 {[%emt 0:00:08]} e6 {[%emt 0:00:07]} 3. Nf3 {[%emt 0:00:13]} b6 {[%emt 0:00:05]} 4. g3 {[%emt 0:00:19]} Bb7 {[%emt 0:00:08]} 5. Bg2 {[%emt 0:00:13]} Be7 {[%emt 0:00:17]} 6. O-O {[%emt 0:00:19]} O-O {[%emt 0:00:11]} 7. Re1 {[%emt 0:00:48]} Ne4 {[%emt 0:00:32] E17: Queen's Indian: 4 g3 Bb7 5 Bg2 Be7.} 8. Nfd2 {[%emt 0:02:17]} d5 {[%emt 0:01:18]} 9. cxd5 $1 {[%emt 0:16:01] The main line 9.cxd5 scores better than 9.Nxe4.} exd5 {[%emt 0:04:02]} 10. Nc3 {[%emt 0:01:26][%cal Rc3e4]} Nxc3 {[%emt 0:12:09]} 11. bxc3 {[%emt 0:00:06] [#]} c5 $146 {[%emt 0:00:28]} ({Predecessor:} 11... Nd7 12. c4 Nf6 13. Bb2 Qd7 14. Qc2 c5 15. dxc5 bxc5 16. Rab1 Rad8 17. Red1 Qc8 {1-0 (49) Guo,Q (2417)-Zhai,M (2355) Wuxi 2016}) 12. dxc5 {[%emt 0:13:32]} Bxc5 {[%emt 0:19:18]} 13. Nb3 {[%emt 0:03:30]} Na6 {[%emt 0:03:50]} 14. c4 {[%emt 0:06:29]} Bb4 {[%emt 0:03:59]} 15. Rf1 {[%emt 0:18:58]} Nc7 {[%emt 0:01:41]} 16. Bf4 {[%emt 0:02:17][%cal Bc1f4,Bf4e5,Be5b2][%mdl 32]} Ne6 {[%emt 0:02:57]} 17. Be5 {[%emt 0:10:00][%cal Rc4d5]} f6 {[%emt 0:04:07]} 18. Bb2 {[%emt 0:00:10]} (18. Bxd5 $6 Bxd5 19. cxd5 (19. Qxd5 Qxd5 20. cxd5 fxe5 $11) 19... fxe5 $14) (18. cxd5 $6 fxe5 19. dxe6 Bxg2 20. Kxg2 Qf6 $14) 18... Nc7 {[%emt 0:28:55]} 19. Rc1 $1 {[%emt 0:00:34]} a5 {[%emt 0:04:20]} 20. Qc2 {[%emt 0:05:49]} (20. cxd5 $18 Nb5 21. a4) 20... Rf7 {[%emt 0:04:52]} (20... Qe7 $16 {might work better.} 21. cxd5 Nxd5) 21. Rfd1 $1 $18 {[%emt 0:01:04]} a4 {[%emt 0:02:06]} (21... Ne8 {keeps fighting.} 22. cxd5 (22. Bxd5 Bxd5 23. cxd5 Rc7 $16) 22... Rc8) 22. Nd4 {[%emt 0:00:37]} Qe8 {[%emt 0:01:02]} 23. Nf5 {[%emt 0:06:02]} Rd8 {[%emt 0:02:11]} 24. Bd4 {[%emt 0:01:51]} Ba5 {[%emt 0:02:44]} 25. Rb1 {[%emt 0:04:32]} Ba6 $2 {[%emt 0:00:57]} (25... Bc8 {is a better defense.}) 26. Bxb6 {[%emt 0:01:08]} Bxb6 {[%emt 0:00:24]} 27. Rxb6 {[%emt 0:00:05]} Rfd7 {[%emt 0:00:27]} 28. cxd5 {[%emt 0:04:16]} Qxe2 {[%emt 0:00:10]} 29. Qxe2 {[%emt 0:01:03]} Bxe2 {[%emt 0:00:04]} 30. Rd2 {[%emt 0:00:35]} Bc4 {[%emt 0:00:51][%cal Rc7d5]} (30... Nxd5 $2 31. Rxd5 Rxd5 32. Bxd5+ Kf8 33. Ne3 $18) 31. d6 {[%emt 0:00:07]} Na8 {[%emt 0:01:02]} 32. Rb4 {[%emt 0:00:47]} Be6 {[%emt 0:00:19]} 33. Ne3 {[%emt 0:00:31]} ({Less strong is} 33. Rxa4 Nb6 34. Ne7+ Kf7 $16) 33... Kf7 {[%emt 0:00:34]} 34. a3 {[%emt 0:00:30]} Ra7 {[%emt 0:00:27]} 35. Bc6 {[%emt 0:00:29]} Ra6 {[%emt 0:00:16]} 36. Bb7 ({Much less strong is} 36. Bxa4 $6 Nb6 $18) 36... Rb6 {[%emt 0:00:17]} 37. Rxb6 {[%emt 0:01:04]} (37. Rdd4 $18 {is the precise move to win.}) 37... Nxb6 $16 {[%emt 0:00:06]} 38. Rd4 {[%emt 0:00:07]} Bb3 {[%emt 0:01:18]} 39. Bc6 {[%emt 0:00:33]} Ke6 {[%emt 0:00:26]} 40. Rb4 {[%emt 0:00:23]} Nd7 {[%emt 0:00:36]} 41. Bxa4 {[%emt 0:30:45] White has more active pieces.} Bxa4 {[%emt 0:01:46]} 42. Rxa4 {[%emt 0:00:00][%mdl 4096] Endgame KRN-KRN} g5 {[%emt 0:04:43]} 43. Re4+ {[%emt 0:00:00]} Kxd6 {[%emt 0:01:15]} 44. Nf5+ {[%emt 0:00:00]} Kd5 {[%emt 0:00:48]} 45. Rd4+ {[%emt 0:00:00]} Kc6 {[%emt 0:02:23]} (45... Ke6 $16 {was called for.}) 46. Ne7+ $18 {[%emt 0:00:00]} Kc7 {[%emt 0:00:22]} 47. Nd5+ {[%emt 0:00:00]} Kc8 {[%emt 0:00:11]} 48. Rc4+ {[%emt 0:00:00]} Kb8 {[%emt 0:03:44]} 49. Kg2 {[%emt 0:00:00]} h5 {[%emt 0:04:11]} 50. Rb4+ {[%emt 0:00:00]} Ka7 {[%emt 0:03:57]} 51. h3 {[%emt 0:00:00]} Rc8 {[%emt 0:03:44]} 52. Rd4 {[%emt 0:00:00]} Rh8 {[%emt 0:02:44]} 53. Ne7 {[%emt 0:00:00]} Ne5 {[%emt 0:02:03]} 54. f4 {[%emt 0:00:41]} gxf4 {[%emt 0:03:59]} 55. gxf4 {[%emt 0:00:11]} Nf7 {[%emt 0:00:04]} 56. Rd7+ {[%emt 0:00:08]} Kb6 {[%emt 0:01:45]} 57. Nf5 {[%emt 0:02:47]} Nd8 {[%emt 0:00:15]} (57... Rf8 $142 58. Kf3 Kc6) 58. Rd6+ {[%emt 0:00:08]} Kc5 {[%emt 0:00:09]} 59. Rxf6 {[%emt 0:00:06]} Nc6 {[%emt 0:00:20]} 60. Rh6 {[%emt 0:00:57]} Ra8 {[%emt 0:01:05]} 61. Rxh5 {[%emt 0:00:12] And now Ne7+ would win.} Rxa3 {[%emt 0:00:18]} (61... Nd8 $142 62. Rh8 Kc6) 62. Ne7+ {[%emt 0:00:20]} (62. Ne3+ $142 Kd4 63. Nc2+ Ke4 64. Nxa3 Kxf4 65. Nc4) 62... Kd6 {[%emt 0:00:04]} 63. Nxc6 {[%emt 0:00:09]} Kxc6 {[%emt 0:00:02] KR-KR} 64. Re5 {[%emt 0:00:46]} Kd6 {[%emt 0:00:16]} 65. h4 {[%emt 0:00:18][%cal Bh3h4,Bh4h5,Bh5h6][%mdl 32]} Rb3 {[%emt 0:00:09]} 66. h5 {[%emt 0:00:21]} Ra3 {[%emt 0:00:03]} 67. h6 {[%emt 0:00:56]} Ra7 {[%emt 0:00:38]} 68. Rh5 {[%emt 0:01:23]} Rh7 {[%emt 0:00:15]} 69. Kf3 {[%emt 0:00:38]} Ke6 {[%emt 0:00:13]} 70. Kg4 {[%emt 0:00:40]} Kf7 {[%emt 0:02:43]} 71. Kg5 {[%emt 0:00:21]} Kg8 {[%emt 0:00:18]} 72. Rh1 $2 {[%emt 0:00:45]} (72. f5 Ra7 73. Kg6 Rg7+ 74. Kf6 Rf7+ 75. Kg5 Kh7 76. Rh4 Ra7 77. Rf4) 72... Rf7 $2 {[%emt 0:00:59]} (72... Rb7 $18 73. f5 Rb2) 73. Re1 {[%emt 0:02:34]} Kh7 {[%emt 0:01:05]} 74. f5 {[%emt 0:00:23]} Ra7 {[%emt 0:00:30]} 75. Re5 {[%emt 0:00:09]} Ra1 {[%emt 0:00:45]} 76. Re7+ {[%emt 0:00:58]} Kg8 {[%emt 0:00:11]} 77. Kg6 $2 {[%emt 0:01:36]} (77. f6 Rg1+ 78. Kf5 Rh1 79. h7+ Kf8 80. Rb7 Rf1+ 81. Kg4 Rg1+ 82. Kf3) 77... Rg1+ {[%emt 0:00:12]} 78. Kf6 {[%emt 0:00:04] White wants to mate with Rg7+.} Rf1 $2 {[%emt 0:00:30]} (78... Ra1 79. Rb7 Ra2 80. Rg7+ Kh8) 79. Rg7+ {[%emt 0:01:20]} (79. Re8+ $142 Kh7 80. Ke6 Re1+ 81. Kf7) 79... Kh8 {[%emt 0:00:16]} 80. Rd7 {[%emt 0:00:28] Kg6 would kill now.} Kg8 {[%emt 0:00:21]} 81. Rc7 $2 {[%emt 0:00:34]} (81. Rd8+ Kh7 82. Ke6 Kxh6 83. f6) 81... Rf2 $2 {[%emt 0:00:10]} (81... Rb1 $18 82. Rg7+ Kh8) 82. Rd7 {[%emt 0:00:45]} (82. Rg7+ $142 Kh8 83. Re7 Kg8 84. h7+ Kh8 85. Kg6 Rg2+ 86. Kf7 Rf2 87. Re8+ Kxh7 88. f6) 82... Rf1 $1 {[%emt 0:00:04]} 83. Rd8+ {[%emt 0:00:25]} Kh7 {[%emt 0:00:12]} 84. Ke6 {[%emt 0:00:41] Intending f6 and mate.} Ra1 {[%emt 0:02:36] [#]} 85. f6 $1 {[%emt 0:00:14]} Ra6+ {[%emt 0:00:13]} 86. Rd6 {[%emt 0:00:09]} Ra8 {[%emt 0:00:35] [#]} 87. Rd2 $2 {[%emt 0:01:08]} (87. f7 $1 {mates} Kxh6 88. Kf6 Rc8 89. Rd3 Kh5 90. Ke7 Kg5 91. Rd8 Rc7+ 92. Ke8) 87... Kxh6 $11 {[%emt 0:00:30] The position is equal.} 88. Ke7 {[%emt 0:00:31] White threatens f7 and mate.} Ra7+ {[%emt 0:00:32]} 89. Rd7 {[%emt 0:00:14]} Ra8 {[%emt 0:00:30]} 90. Kf7 {[%emt 0:00:44]} Ra6 {[%emt 0:00:37]} 91. Rc7 {[%emt 0:00:30]} Kg5 {[%emt 0:00:33]} 92. Rc5+ {[%emt 0:00:03]} Kh6 {[%emt 0:00:03]} 93. Re5 {[%emt 0:00:46]} Ra7+ {[%emt 0:00:40]} 94. Re7 {[%emt 0:00:07]} Ra6 {[%emt 0:00:21]} 95. Re6 {[%emt 0:00:28]} Ra8 {[%emt 0:00:46]} 96. Ke7 {[%emt 0:00:59]} Kg6 {[%emt 0:00:34]} 97. f7+ {[%emt 0:00:37]} Kg7 {[%emt 0:00:08]} 98. Re2 {[%emt 0:00:17]} Ra7+ {[%emt 0:00:07]} 99. Ke8 {[%emt 0:00:03]} Ra8+ {[%emt 0:00:03]} 100. Ke7 {[%emt 0:00:03] Blacks defense is rewarded with a draw.  Weighted Error Value: White=0.15 (very precise) /Black=0.26 (precise)} 1/2-1/2

[Event "26th Womens ECCC 2022"]
[Site "Mayrhofen"]
[Date "2022.10.09"]
[Round "7.8"]
[White "Tarleva, Diana"]
[Black "Paehtz, Elisabeth"]
[Result "0-1"]
[ECO "B90"]
[WhiteElo "2175"]
[BlackElo "2469"]
[Annotator "TA"]
[PlyCount "102"]
[EventDate "2022.10.03"]
[EventType "team-tourn"]
[EventCountry "AUT"]
[SourceTitle "playchess.com"]
[Source "ChessBase"]
[SourceQuality "1"]
[TimeControl "40/5400+30:1800+30"]

{[%evp 12,102,34,0,4,0,8,-11,-13,-17,0,0,17,8,11,0,0,0,0,-13,0,-64,-73,-70,-36,-186,-185,-197,-202,-177,-194,-221,-219,-235,-250,-228,-179,-273,-272,-289,-261,-396,-395,-392,-395,-382,-356,-466,-460,-434,-373,-301,-291,-304,-296,-300,-299,-283,-265,-318,-303,-347,-333,-313,-202,-204,-204,-181,-131,-317,-285,-227,-123,-123,-123,-123,-108,-93,-97,-448,-449,-410,-388,-4133,-4133,-4133,-4133,-4129,-4129,-29986,-29987,-29987,-29988]} 1. e4 {[%emt 0:01:19]} c5 {[%emt 0:00:04]} 2. Nf3 {[%emt 0:00:07]} d6 {[%emt 0:00:41]} 3. d4 {[%emt 0:00:07]} cxd4 {[%emt 0:00:04]} 4. Nxd4 {[%emt 0:00:07]} Nf6 {[%emt 0:00:02]} 5. Nc3 {[%emt 0:00:08]} a6 {[%emt 0:00:03]} 6. h3 {[%emt 0:00:06]} e5 {[%emt 0:01:06]} 7. Nb3 {[%emt 0:00:08]} Be7 {[%emt 0:01:32] B90: Sicilian Najdorf: Unusual White 6th moves, 6 Be3 Ng4 and 6 Be3 e5.} 8. Be3 {[%emt 0:08:51] 8.g4 might become the main line.} Be6 {[%emt 0:00:30]} 9. Nd5 {[%emt 0:04:26]} Nxd5 {[%emt 0:02:56] The position is equal.} 10. exd5 {[%emt 0:00:08]} Bf5 {[%emt 0:00:02]} 11. Bd3 {[%emt 0:02:22] [#]} Bg6 $146 {[%emt 0:01:52]} ({Predecessor:} 11... Bxd3 12. Qxd3 O-O 13. O-O-O Nd7 14. Kb1 b5 15. Qd2 a5 16. Qe2 Qb8 17. h4 a4 {0-1 (47) Garcia,G-Estrada Degrandi,W Havana 1963}) 12. Bxg6 {[%emt 0:08:38]} hxg6 {[%emt 0:00:07]} 13. Qd3 {[%emt 0:00:07]} Nd7 {[%emt 0:00:58][%cal Bb8d7,Bd7f6,Bf6e4][%mdl 32]} 14. O-O-O {[%emt 0:04:38]} Rc8 {[%emt 0:00:06]} 15. f4 {[%emt 0:01:03]} Qc7 {[%emt 0:02:50]} 16. f5 {[%emt 0:05:25]} (16. Kb1 $11) 16... gxf5 $15 {[%emt 0:05:10]} 17. Qxf5 {[%emt 0:00:09]} Nf6 {[%emt 0:03:50]} 18. Bb6 {[%emt 0:06:42]} g6 $19 {[%emt 0:07:52][%cal Bg7g6,Bg6f5,Bf5f4][%mdl 32]} 19. Bxc7 {[%emt 0:00:58]} gxf5 {[%emt 0:00:03]} 20. Bb6 {[%emt 0:00:07]} f4 {[%emt 0:00:04]} 21. Na5 {[%emt 0:03:37]} Rg8 {[%emt 0:03:33]} 22. Rhg1 {[%emt 0:02:35]} Ne4 {[%emt 0:01:36]} ({Not} 22... Nd7 23. Bf2) 23. Rd3 {[%emt 0:01:49]} Bg5 {[%emt 0:07:51]} 24. Kb1 {[%emt 0:00:02]} (24. Rb3 $142) 24... f5 {[%emt 0:01:15]} 25. c4 {[%emt 0:00:15]} Bh4 {[%emt 0:05:48]} 26. Nxb7 {[%emt 0:08:51]} (26. a4 $142) 26... Rxc4 {[%emt 0:03:01]} 27. a3 {[%emt 0:05:21]} Rc8 {[%emt 0:07:24]} 28. Na5 {[%emt 0:00:50]} Rb8 {[%emt 0:02:24]} 29. Nc4 {[%emt 0:03:15] [#]} Rxb6 {[%emt 0:08:21][%mdl 512]} 30. Nxb6 {[%emt 0:00:10]} f3 {[%emt 0:01:57]} 31. g4 {[%emt 0:07:50]} fxg4 {[%emt 0:02:50]} 32. hxg4 {[%emt 0:01:21]} Bf2 {[%emt 0:08:42][%csl LRb6,LRg1]} 33. Rgd1 {[%emt 0:05:18]} Bxb6 {[%emt 0:00:33]} 34. Rxf3 {[%emt 0:00:07]} Rxg4 {[%emt 0:00:30]} 35. Rb3 {[%emt 0:00:10]} Bd4 {[%emt 0:06:38]} 36. Rb7 {[%emt 0:01:31]} Nc5 {[%emt 0:00:03]} 37. Rb8+ {[%emt 0:04:31]} Kd7 {[%emt 0:07:36] ...Ke7 is the strong threat.} 38. Rh1 {[%emt 0:00:22] Rh7+ would kill now.} Rg1+ $1 {[%emt 0:00:55]} 39. Rxg1 {[%emt 0:00:22]} Bxg1 {[%emt 0:00:02]} 40. b4 $2 {[%emt 0:00:02]} (40. Kc2 $17) 40... Na4 {[%emt 0:00:51]} 41. Rb7+ {[%emt 0:33:03] [#]} Kc8 {[%emt 0:30:10]} ({Black should play} 41... Kd8 $1 $19 {Hoping for ...Nc3+.} 42. Rg7 Bh2) 42. Rg7 $17 {[%emt 0:00:04]} Bd4 {[%emt 0:02:21]} 43. Rg8+ {[%emt 0:00:09]} Kd7 {[%emt 0:00:00]} 44. Rg7+ {[%emt 0:00:00]} Ke8 {[%emt 0:00:00] Threatens to win with ...Nc3+.} 45. Rg8+ $2 {[%emt 0:00:00][%mdl 8192]} (45. Rg6 $17 {was the crucial defense.}) 45... Kf7 $19 {[%emt 0:00:00]} 46. Ra8 {[%emt 0:00:00]} e4 {[%emt 0:00:00][%cal Be5e4,Be4e3,Be3e2][%mdl 32]} 47. Rxa6 $2 {[%emt 0:00:00] [#]} (47. Kc2 e3 48. Rc8 (48. Kd3 $2 Nc3 $19)) 47... e3 $1 {[%emt 0:00:00]} 48. Kc2 {[%emt 0:00:00] [#]} (48. Kc1 e2) 48... e2 $1 {[%emt 0:00:00]} 49. Kd2 {[%emt 0:00:00]} Nc3 {[%emt 0:00:00][%cal Od4f2] ( -> ...Bf2!)} 50. Ke1 {[%emt 0:00:00] Against Bf2+} Be5 {[%emt 0:00:00]} 51. Ra7+ {[%emt 0:00:00]} Kf6 {[%emt 0:00:00] Weighted Error Value: White=0.63/Black=0.12 (very precise)} 0-1